bitfinex/quotes_ETHUSD_20250130
["timestamp","ask_amount","ask_price","bid_price","bid_amount"]
[1738206035785,0.03278442,3158.9,3158.4,6.52498735]
[1738206036088,0.03278442,3158.9,3158.4,0.29298678]
[1738206036489,0.03278442,3158.9,3158.3,3.16625]
[1738206036711,0.7946,3158.8,3157.8,3.06585057]
[1738206036862,0.7946,3158.8,3158.2,3.16626]
[1738206037407,3.96038,3158.8,3158.2,3.16626]
[1738206037713,3.96038,3158.8,3158.1,3.06585057]
[1738206038377,0.7946,3158.8,3157.8,6.23260057]
[1738206038596,3.16601,3158.6,3157.9,3.16665]
[1738206039086,3.96041,3158.8,3157.9,3.16665]
[1738206039280,3.16607,3158.5,3157.9,3.16665]
[1738206039692,0.7668,3158.3,3157.5,3.06585057]
[1738206039872,3.16636,3158.2,3157.5,6.23286057]
[1738206040078,3.93306,3158.3,3157.6,3.16688]
[1738206040400,3.16638,3158.2,3157.6,3.16688]
[1738206040705,3.16664,3158.0,3157.3,3.16722]
[1738206041056,3.16664,3158.0,3157.3,3.16718]
[1738206042332,3.16647,3158.1,3157.4,3.16716]
[1738206042685,3.16658,3158.0,3157.3,3.16725]
[1738206042887,3.16667,3157.9,3157.2,3.06585057]
[1738206043239,0.8235,3157.8,3157.2,6.23320057]
[1738206043638,3.16697,3157.6,3156.8,3.16775]
[1738206044083,3.16697,3157.6,3156.9,3.16764]
[1738206044288,3.16697,3157.6,3156.7,3.16781]
[1738206044539,3.16697,3157.6,3156.7,3.801384]
[1738206044747,3.16697,3157.6,3156.7,0.633574]
[1738206044888,3.16697,3157.6,3156.9,3.16759]
[1738206045241,3.16727,3157.3,3156.5,3.16804]
[1738206045396,0.7643,3157.2,3156.5,3.16804]
[1738206045741,0.7643,3157.2,3156.3,3.16825]
[1738206045883,3.16752,3157.1,3156.1,3.16844]
[1738206046082,3.16777,3156.8,3156.2,0.316844]
[1738206046549,3.16787,3156.7,3156.2,0.316844]
[1738206046689,3.16774,3156.9,3156.2,0.316844]
[1738206046888,3.16785,3156.8,3155.8,3.92636]
[1738206047139,0.7643,3156.5,3156.0,3.16855]
[1738206047331,0.7643,3156.5,3156.1,3.16845]
[1738206048213,0.7643,3156.9,3156.0,0.55]
[1738206048418,0.7643,3156.9,3156.4,3.16807]
[1738206048619,0.7643,3156.9,3156.2,3.16833]
[1738206049055,3.93203,3156.9,3156.2,3.16833]
[1738206049393,0.7643,3156.9,3156.6,3.16793]
[1738206049596,0.0075,3157.7,3156.4,3.16811]
[1738206049597,3.16736,3157.2,3156.4,3.16811]
[1738206049845,3.16753,3157.1,3156.4,3.16811]
[1738206050159,3.16758,3157.0,3156.4,3.16811]
[1738206050695,3.16758,3157.0,3156.2,0.371833]
[1738206050896,3.16758,3157.0,3156.3,3.5222163]
[1738206051548,3.16736,3157.2,3156.5,3.16805]
[1738206052111,0.7643,3157.4,3156.3,0.3540263]
[1738206052317,3.1673,3157.3,3156.5,3.16799]
[1738206052536,3.16737,3157.2,3156.5,3.16799]
[1738206052845,0.0075,3157.9,3156.5,3.16799]
[1738206052846,0.7605,3158.5,3157.4,0.55]
[1738206053002,0.7655,3158.9,3158.3,3.16617]
[1738206053205,0.7655,3158.9,3158.4,3.16614]
[1738206053428,0.7655,3158.9,3158.0,0.8222]
[1738206053747,0.7655,3158.9,3158.3,3.16616]
[1738206053973,0.005,3158.9,3158.6,3.16585]
[1738206054148,0.005,3158.9,3158.8,3.16575]
[1738206054967,0.005,3158.9,3158.8,3.71575]
[1738206057047,1e-05,3158.9,3158.8,6.72325]
[1738206057229,1e-05,3158.9,3158.8,6.73075]
[1738206057410,1e-05,3158.9,3158.8,8.10527506]
[1738206057614,1e-05,3159.2,3159.1,3.72295]
[1738206058056,1e-05,3159.2,3159.1,6.72295]
[1738206058236,1e-05,3159.2,3159.1,6.73045]
[1738206059122,1e-05,3159.2,3159.1,6.72295]
[1738206059329,1e-05,3159.2,3159.1,8.09979706]
[1738206059628,1e-05,3159.2,3159.1,8.39133427]
[1738206059823,1e-05,3159.2,3159.1,9.21293427]
[1738206060337,1e-05,3159.2,3159.1,9.4459446]
[1738206060557,1e-05,3159.2,3159.1,13.13915246]
[1738206060848,1e-05,3159.2,3159.1,13.77347088]
[1738206061681,1e-05,3159.2,3159.1,13.87240502]
[1738206062323,1e-05,3159.2,3159.1,14.25325744]
[1738206063330,1e-05,3159.2,3159.1,13.77347088]
[1738206064331,1e-05,3159.2,3159.1,13.54046055]
[1738206064752,1e-05,3159.2,3159.1,9.89864213]
[1738206065188,1e-05,3159.2,3159.1,9.60710492]
[1738206065374,3.957,3160.3,3159.6,3.16487]
[1738206065551,0.02895757,3160.2,3159.6,3.16487]
[1738206065732,3.16456,3160.0,3159.3,3.16517]
[1738206065933,0.02887846,3159.9,3159.1,3.16539]
[1738206066130,3.19361846,3159.9,3159.1,3.16539]
[1738206066475,3.16477,3159.8,3159.1,3.16539]
[1738206066998,3.16477,3159.8,3158.9,6.16565]
[1738206066999,3.95823,3159.6,3158.9,3.16565]
[1738206067143,3.16514,3159.5,3158.7,3.16584]
[1738206067469,3.19383567,3159.4,3158.8,3.16573]
[1738206067671,3.19383567,3159.4,3158.6,3.16592]
[1738206068037,3.16527,3159.3,3158.6,3.16594]
[1738206068248,3.16527,3159.3,3158.3,3.482866]
[1738206068436,3.19368863,3159.2,3158.4,0.78223321]
[1738206068645,3.19368863,3159.2,3158.3,3.482866]
[1738206068856,3.19368863,3159.2,3158.1,3.16645]
[1738206068857,3.16566,3158.9,3158.1,3.16645]
[1738206069057,3.95868,3159.1,3158.3,3.16616]
[1738206069266,3.95868,3159.1,3158.4,3.16612]
[1738206070374,3.16556,3159.0,3158.4,3.16612]
[1738206070668,3.16556,3159.0,3158.2,3.16632]
[1738206070850,3.16556,3159.0,3158.3,3.16625]
[1738206071049,3.16569,3158.9,3158.3,3.16625]
[1738206071431,3.16556,3159.0,3158.1,3.16645]
[1738206071636,3.16576,3158.8,3158.1,3.16645]
[1738206072479,3.561436,3159.0,3158.2,3.16632]
[1738206072684,3.16566,3158.9,3158.2,3.16635]
[1738206073577,3.16576,3158.8,3158.2,3.16635]
[1738206073951,3.16596,3158.6,3158.0,3.16655]
[1738206074155,0.7815,3158.5,3157.8,3.16675]
[1738206074477,0.7815,3158.5,3157.6,3.0]
[1738206074478,0.7815,3158.5,3158.1,3.16644]
[1738206078291,0.7815,3158.5,3158.2,3.16634]
[1738206078788,0.7815,3158.5,3158.1,3.16644]
[1738206079552,0.7815,3158.5,3158.2,3.16634]
[1738206079788,3.16538,3159.2,3158.4,3.16616]
[1738206079996,0.8329,3159.1,3158.5,3.16599]
[1738206080158,0.8329,3159.1,3158.0,3.16656]
[1738206080358,0.8329,3159.1,3158.5,3.16597]
[1738206080955,0.8329,3159.1,3158.6,3.16594]
[1738206081154,0.8329,3159.5,3158.6,0.316594]
[1738206081371,0.8329,3159.5,3158.9,3.16558]
[1738206081595,0.8329,3159.5,3159.0,3.16549]
[1738206082100,3.16532,3159.3,3158.7,3.16583]
[1738206082277,0.8329,3159.5,3158.7,3.16583]
[1738206082462,3.99802,3159.5,3158.8,3.16566]
[1738206082666,3.99802,3159.5,3158.7,3.16585]
[1738206082864,3.16527,3159.3,3158.6,3.16595]
[1738206083669,3.99802,3159.5,3158.6,3.16595]
[1738206083873,0.8329,3159.5,3158.9,3.16559]
[1738206084070,0.8329,3159.5,3159.1,3.16545]
[1738206084284,0.8329,3159.5,3159.2,3.16533]
[1738206084462,0.7703,3160.0,3159.4,3.16515]
[1738206084863,0.7703,3160.0,3159.7,3.16484]
[1738206085064,0.7703,3160.0,3159.6,3.16487]
[1738206085303,0.7703,3160.0,3159.4,3.16513]
[1738206085471,0.7703,3160.0,3159.4,3.16512]
[1738206085665,3.93485,3160.0,3159.4,3.16512]
[1738206086004,0.7703,3160.0,3159.2,3.16532]
[1738206086297,0.7703,3160.0,3159.4,3.16511]
[1738206087202,3.93492,3160.0,3159.4,3.16511]
[1738206087619,3.16476,3159.8,3159.3,0.316532]
[1738206087822,3.16466,3159.9,3159.3,3.481782]
[1738206088021,3.16488,3159.7,3159.1,3.16543]
[1738206088517,3.16488,3159.7,3159.0,3.16553]
[1738206088707,3.92006,3159.6,3159.0,3.16553]
[1738206090230,0.7551,3159.6,3159.1,3.16537]
[1738206090431,0.833,3159.9,3159.3,3.16516]
[1738206091136,3.99772,3159.9,3159.0,3.16546]
[1738206091299,0.833,3159.9,3159.0,3.16546]
[1738206091499,3.16476,3159.8,3159.0,3.16546]
[1738206091829,0.833,3159.9,3159.3,3.16525]
[1738206092222,3.99768,3159.9,3159.3,3.16525]
[1738206094220,3.16484,3159.8,3159.1,3.481996]
[1738206094422,0.8289,3159.4,3158.6,3.1659]
[1738206094815,3.99412,3159.4,3158.8,3.16574]
[1738206095439,3.16526,3159.3,3158.8,3.16574]
[1738206095643,3.16558,3159.0,3158.7,0.29277944]
[1738206095804,0.832,3158.9,3158.7,0.29277944]
[1738206096141,3.16575,3158.8,3158.7,0.29277944]
[1738206096351,3.16575,3158.8,3158.5,0.23430097]
[1738206096670,3.94435,3158.6,3158.5,0.23430097]
[1738206097321,3.94435,3158.6,3158.1,0.29277944]
[1738206097513,3.16607,3158.5,3158.1,0.29277944]
[1738206097937,3.16616,3158.4,3158.0,0.29277944]
[1738206098337,3.1664,3158.2,3158.0,0.29277944]
[1738206099052,0.7696,3158.1,3158.0,0.29277944]
[1738206099550,0.7696,3158.1,3157.6,0.52708041]
[1738206099749,1.163198,3158.1,3157.6,0.52708041]
[1738206100047,3.16686,3157.7,3157.6,0.52708041]
[1738206100247,3.93646,3157.7,3157.6,0.52708041]
[1738206100657,0.52,3157.7,3157.6,0.23430097]
[1738206100946,0.52,3157.7,3157.2,3.65349259]
[1738206101134,0.52,3157.7,3157.3,0.4180573]
[1738206101444,0.52,3157.7,3157.1,0.52708041]
[1738206101830,3.16646,3158.1,3157.3,3.16718]
[1738206102230,3.16646,3158.1,3157.1,3.40171097]
[1738206102231,3.16668,3157.9,3157.2,3.16736]
[1738206102426,3.16646,3158.1,3157.3,0.08334159]
[1738206102630,3.16632,3158.3,3157.2,3.16736]
[1738206102826,0.316632,3158.2,3157.2,3.80085]
[1738206103754,0.8205,3158.1,3157.2,3.80085]
[1738206103955,0.8205,3158.1,3157.2,3.16736]
[1738206104256,0.316632,3158.2,3157.0,3.0]
[1738206104257,3.16659,3158.0,3157.0,3.0]
[1738206104436,3.16676,3157.8,3156.7,6.16779]
[1738206104638,0.8292,3157.7,3156.7,6.16779]
[1738206104838,0.8292,3157.7,3156.8,3.784529]
[1738206106119,3.99609,3157.7,3156.7,3.0]
[1738206106653,3.16697,3157.6,3156.7,3.0]
[1738206106823,0.8225,3157.5,3156.7,3.0]
[1738206107860,0.8225,3157.5,3156.6,3.16795]
[1738206108633,0.8225,3157.5,3156.6,3.0]
[1738206109247,1.221447,3157.5,3156.6,3.0]
[1738206109962,1.221447,3157.5,3156.7,3.16786]
[1738206110162,0.8225,3157.5,3156.9,3.16765]
[1738206110362,0.8225,3157.5,3156.8,3.16776]
[1738206110678,0.8333,3158.1,3157.2,3.16732]
[1738206111369,1.234006,3158.1,3157.2,3.16732]
[1738206112101,0.8333,3158.1,3157.4,3.16715]
[1738206112294,0.8333,3158.1,3157.6,3.16688]
[1738206113395,0.61158807,3158.1,3157.6,3.16688]
[1738206116183,0.828,3158.7,3157.6,3.05380863]
[1738206116344,0.828,3158.4,3157.4,3.16713]
[1738206116685,3.99418,3158.4,3157.5,0.62209386]
[1738206116877,0.7863,3158.3,3157.5,0.62209386]
[1738206117182,3.95256,3158.3,3157.5,0.62209386]
[1738206117482,0.76,3158.1,3157.1,3.16744]
[1738206117785,3.16666,3157.9,3156.9,3.16764]
[1738206118156,0.76,3158.0,3157.0,3.16748]
[1738206118474,0.76,3158.0,3157.1,3.16743]
[1738206118646,1.207649,3158.0,3157.1,3.16743]
[1738206119048,0.76,3158.0,3157.4,3.16715]
[1738206119268,0.76,3158.0,3157.2,3.16729]
[1738206120372,0.76,3158.0,3157.1,3.16746]
[1738206120748,0.76,3158.0,3157.3,3.16718]
[1738206121287,0.76,3158.0,3157.1,3.16738]
[1738206121583,0.76,3158.0,3157.2,3.16731]
[1738206121785,0.76,3158.0,3157.1,0.62211886]
[1738206121786,0.76,3158.0,3157.3,3.16719]
[1738206121990,0.76,3158.0,3157.4,3.16709]
[1738206122888,0.76,3158.0,3157.3,3.16719]
[1738206123086,0.7865,3157.9,3156.9,3.16759]
[1738206123256,0.7865,3157.8,3157.0,3.1675]
[1738206123699,0.7865,3157.6,3156.4,3.16813]
[1738206123992,0.0075,3157.7,3156.2,3.16835]
[1738206123993,0.7865,3157.2,3156.2,3.16835]
[1738206124170,0.7865,3157.2,3156.5,3.46124849]
[1738206124696,0.7865,3157.2,3156.6,3.16796]
[1738206126195,0.7865,3157.2,3156.6,3.801571]
[1738206126392,0.7865,3157.2,3156.6,3.16796]
[1738206126601,0.7865,3157.2,3156.3,3.16818]
[1738206126782,0.7865,3157.2,3156.4,3.16807]
[1738206127095,0.8191,3157.0,3156.1,3.16844]
[1738206127296,1.217757,3157.0,3156.1,3.16844]
[1738206127592,0.8191,3157.0,3156.4,3.16815]
[1738206127797,0.8191,3157.0,3156.7,3.16785]
[1738206128298,0.8191,3157.0,3156.4,3.16807]
[1738206128503,0.8191,3157.0,3156.2,3.46212356]
[1738206129481,0.8191,3157.0,3156.2,3.16835]
[1738206129708,0.8191,3157.0,3156.2,3.80204]
[1738206129874,0.8191,3157.0,3156.2,3.16835]
[1738206130490,0.8191,3157.0,3156.3,0.23496261]
[1738206130697,0.8191,3157.0,3156.3,3.40321261]
[1738206131489,0.8191,3157.0,3156.3,0.23496261]
[1738206131684,0.8191,3157.0,3156.2,3.16835]
[1738206132292,0.8191,3157.0,3156.2,3.485185]
[1738206133198,0.8191,3157.0,3156.2,3.16835]
[1738206133909,3.16764,3157.0,3156.0,3.16855]
[1738206134200,0.8125,3156.9,3156.0,3.16855]
[1738206134780,0.8125,3156.9,3156.2,3.16826]
[1738206134992,0.8125,3156.9,3156.5,3.16802]
[1738206135501,0.8125,3156.9,3156.0,3.16853]
[1738206135801,0.8125,3156.8,3156.0,3.16853]
[1738206136214,0.8125,3156.7,3155.9,3.16863]
[1738206136372,0.8125,3156.7,3155.8,3.16876]
[1738206136577,0.8125,3156.5,3155.8,3.16876]
[1738206136789,0.8125,3156.5,3156.1,3.16845]
[1738206137704,0.8125,3156.5,3156.0,3.16855]
[1738206138008,0.8125,3156.5,3156.2,3.16835]
[1738206138219,0.55,3156.4,3155.5,3.169]
[1738206138500,3.94809,3156.3,3155.5,3.16905]
[1738206138725,4.714712,3156.3,3155.5,3.16905]
[1738206139003,1.546422,3156.3,3155.7,3.16885]
[1738206139307,0.7798,3156.3,3155.9,3.16861]
[1738206140904,0.7798,3156.3,3156.1,3.16845]
[1738206141080,0.7798,3156.3,3155.6,0.7773]
[1738206141606,0.7798,3156.3,3155.9,3.16861]
[1738206142311,0.7798,3156.3,3156.0,3.16853]
[1738206143076,0.7798,3156.3,3155.7,3.16883]
[1738206143309,0.7798,3156.3,3155.9,3.16865]
[1738206144007,0.7798,3156.3,3156.0,3.1685]
[1738206145493,0.7798,3156.3,3156.1,3.16844]
[1738206146382,0.7798,3156.3,3156.0,3.1685]
[1738206147186,0.7798,3156.3,3155.8,3.16874]
[1738206147612,0.7798,3156.3,3155.9,3.16865]
[1738206147986,0.7798,3156.3,3156.0,3.16852]
[1738206148420,0.7798,3156.3,3156.1,3.16846]
[1738206148599,0.7798,3156.3,3156.0,3.16852]
[1738206148822,0.7798,3156.3,3156.0,3.802246]
[1738206149141,0.7851,3157.1,3156.4,3.16814]
[1738206149280,0.7851,3157.1,3156.8,3.16776]
[1738206150922,0.779,3157.8,3157.2,3.16732]
[1738206151082,0.779,3157.8,3157.3,3.16718]
[1738206151578,0.779,3157.8,3157.1,3.16745]
[1738206151779,0.779,3157.8,3156.9,3.16762]
[1738206152014,0.779,3157.8,3157.0,3.16754]
[1738206152208,0.779,3157.8,3157.1,3.16739]
[1738206153314,0.779,3157.8,3157.2,3.16733]
[1738206154218,0.779,3157.8,3157.3,3.16723]
[1738206154417,0.779,3157.8,3157.7,3.16686]
[1738206155256,0.779,3157.8,3157.5,3.16699]
[1738206156463,0.779,3157.8,3157.6,3.16695]
[1738206156647,0.779,3157.8,3157.7,3.16686]
[1738206157043,1.364,3158.5,3157.7,3.16686]
[1738206157239,0.78609741,3158.4,3157.7,3.16686]
[1738206157627,0.814,3158.5,3157.9,3.16663]
[1738206158135,0.814,3158.5,3157.7,3.16686]
[1738206158343,0.814,3158.5,3157.7,3.16678]
[1738206159022,0.814,3158.5,3157.8,3.16668]
[1738206159753,0.814,3158.5,3157.9,3.16663]
[1738206160279,0.814,3158.5,3157.9,3.799971]
[1738206160413,0.814,3158.5,3158.1,3.16641]
[1738206160624,0.814,3158.5,3158.1,3.16637]
[1738206161142,0.814,3158.5,3157.9,3.16666]
[1738206161549,0.814,3158.5,3157.5,3.16705]
[1738206161750,0.7868,3158.2,3157.3,3.16724]
[1738206161953,0.7868,3158.1,3157.3,3.16724]
[1738206162271,0.7868,3158.1,3157.7,3.16678]
[1738206162568,0.7868,3158.1,3157.6,3.16689]
[1738206162772,0.7868,3158.1,3157.9,3.16665]
[1738206162940,0.7868,3158.7,3158.1,3.16643]
[1738206163140,0.7868,3158.7,3158.3,3.16617]
[1738206164375,0.7868,3159.4,3158.7,3.16576]
[1738206165072,0.7868,3159.4,3158.9,3.1656]
[1738206165375,0.7868,3159.4,3159.0,3.16555]
[1738206165552,0.7868,3159.7,3159.2,3.16531]
[1738206165755,0.7868,3159.7,3159.1,0.316555]
[1738206165952,0.7868,3159.7,3159.2,3.16535]
[1738206166149,0.1683901,3160.4,3158.7,0.7527]
[1738206166150,0.7868,3160.3,3159.5,3.16501]
[1738206166548,0.7868,3160.3,3159.6,3.16495]
[1738206167473,0.7868,3160.3,3159.8,3.16475]
[1738206167643,0.7868,3160.3,3160.0,3.16447]
[1738206167843,0.7868,3160.3,3160.0,3.797392]
[1738206168053,0.7868,3160.3,3160.0,0.632922]
[1738206168950,0.1683901,3160.4,3160.3,3.16425]
[1738206169274,0.1683901,3160.4,3160.3,7.03865863]
[1738206169575,0.7923,3162.1,3160.6,3.05380863]
[1738206169755,0.7923,3162.1,3161.2,3.16327]
[1738206169949,0.7923,3162.1,3161.3,3.16324]
[1738206170177,0.7923,3162.1,3161.1,0.8206]
[1738206170178,0.7923,3162.1,3161.4,3.16315]
[1738206170362,0.7923,3162.1,3161.7,3.16284]
[1738206170561,0.7923,3162.1,3161.5,3.479345]
[1738206171193,0.5,3162.3,3161.8,3.16266]
[1738206171402,0.5,3162.3,3162.0,3.16249]
[1738206171598,0.5,3162.3,3161.8,3.16266]
[1738206171768,0.5,3162.3,3161.8,3.877279]
[1738206171964,0.5,3162.3,3161.9,3.1626]
[1738206172185,0.5,3162.3,3161.8,0.714619]
[1738206172468,0.5,3162.3,3161.4,3.98374]
[1738206172668,0.5,3162.3,3161.2,6.21713863]
[1738206172669,3.66227,3162.3,3161.2,3.16333]
[1738206172869,0.5,3162.3,3161.3,3.16316]
[1738206173170,0.5,3162.3,3161.2,3.16333]
[1738206173171,0.5,3162.3,3161.4,3.16313]
[1738206173376,3.66227,3162.3,3161.4,3.16313]
[1738206173692,0.366227,3162.2,3161.4,3.16313]
[1738206174092,0.366227,3162.2,3161.1,0.8071]
[1738206174093,0.8242,3162.2,3161.3,3.16323]
[1738206174499,0.8242,3162.2,3161.1,0.8071]
[1738206174700,3.16273,3161.9,3160.9,3.16361]
[1738206176120,3.16279,3161.8,3160.8,3.16366]
[1738206176270,1.127579,3161.7,3160.9,3.16361]
[1738206179280,1.127579,3161.7,3160.7,0.8179]
[1738206179281,0.8113,3161.7,3160.7,0.8179]
[1738206179600,0.826,3162.0,3161.5,3.16298]
[1738206180385,0.5,3162.3,3161.3,3.16323]
[1738206180603,0.5,3162.3,3161.9,3.16262]
[1738206180973,0.5,3162.3,3161.7,3.16283]
[1738206181177,0.5,3162.3,3161.4,0.8127]
[1738206181413,0.5,3162.3,3162.0,3.16252]
[1738206181613,0.5,3162.3,3161.8,3.16272]
[1738206181804,0.5,3162.3,3161.9,3.16263]
[1738206182000,0.5,3162.3,3161.6,3.16292]
[1738206182205,0.5,3162.3,3161.7,3.16277]
[1738206182579,0.5,3162.3,3161.8,3.16266]
[1738206182780,0.5,3162.3,3162.1,3.16242]
[1738206183309,0.5,3162.3,3162.0,3.16251]
[1738206185430,0.5,3162.3,3161.8,3.16274]
[1738206185930,0.826,3162.4,3161.8,3.16274]
[1738206186455,0.826,3162.4,3161.6,3.16292]
[1738206186757,3.16228,3162.3,3161.5,3.16305]
[1738206186894,0.71505,3162.2,3161.5,3.16305]
[1738206187330,0.71505,3162.2,3161.2,3.16334]
[1738206187331,3.87741,3162.2,3161.3,3.16319]
[1738206187633,0.759,3162.1,3161.3,3.16319]
[1738206187827,3.92154,3162.1,3161.3,3.16319]
[1738206189097,0.759,3162.1,3161.4,3.16313]
[1738206189311,3.16217,3162.4,3161.6,3.16285]
[1738206189312,0.776,3162.4,3161.6,3.16285]
[1738206189516,0.776,3162.4,3161.7,3.16285]
[1738206189812,0.776,3162.4,3160.9,3.7985]
[1738206190017,0.776,3162.4,3161.8,3.16273]
[1738206190212,1.169807,3162.4,3161.8,3.16273]
[1738206190607,4.331977,3162.4,3161.6,3.16289]
[1738206190827,4.331977,3162.4,3161.5,3.163]
[1738206191098,4.331977,3162.4,3161.6,3.16294]
[1738206193189,1.3489,3162.3,3161.4,3.16314]
[1738206193329,0.7914,3162.1,3161.4,3.16314]
[1738206193935,3.95385,3162.1,3161.4,3.16314]
[1738206194138,3.95385,3162.1,3161.2,3.16334]
[1738206194345,3.95385,3162.1,3161.3,3.16323]
[1738206195069,3.1626,3162.0,3161.2,3.16334]
[1738206195274,0.8194,3161.8,3161.2,3.16328]
[1738206195865,0.632505,3161.9,3160.8,3.16374]
[1738206195866,3.16298,3161.6,3160.8,3.16374]
[1738206196071,0.632505,3161.9,3161.3,3.16317]
[1738206196072,0.8302,3161.8,3161.3,3.16317]
[1738206200180,0.8302,3161.8,3161.3,3.16318]
[1738206200587,0.8302,3161.8,3161.4,0.29254895]
[1738206201383,0.8302,3161.8,3161.4,0.52658034]
[1738206201685,0.8302,3161.8,3161.4,0.23403139]
[1738206201987,0.8302,3161.8,3161.6,3.16288]
[1738206202491,0.8258,3162.3,3161.6,3.16288]
[1738206202854,0.8258,3162.3,3161.7,0.29248761]
[1738206203254,1.224604,3162.3,3161.7,0.29248761]
[1738206204077,3.16255,3162.0,3161.7,0.29248761]
[1738206204388,0.8179,3161.9,3161.1,3.16342]
[1738206204564,3.98056,3161.9,3161.1,3.16342]
[1738206205165,0.8179,3161.9,3161.2,3.16332]
[1738206205359,0.8179,3161.9,3161.2,3.45594322]
[1738206205581,3.98056,3161.9,3161.2,3.45594322]
[1738206205776,4.378616,3161.9,3161.2,0.29262322]
[1738206205975,3.16275,3161.8,3161.2,0.29262322]
[1738206206183,0.7738,3161.7,3161.2,0.29262322]
[1738206206993,0.7738,3161.7,3161.1,3.16342]
[1738206207691,3.93665,3161.7,3160.9,3.16361]
[1738206207879,0.393665,3161.6,3160.9,3.16361]
[1738206208074,0.393665,3161.6,3161.0,3.16351]
[1738206208281,3.93665,3161.7,3160.4,5.30835665]
[1738206208282,0.7738,3161.7,3161.5,3.16297]
[1738206208468,0.786,3162.2,3161.5,3.16297]
[1738206208773,3.16253,3162.1,3161.1,3.16344]
[1738206209070,0.786,3161.8,3161.2,3.16331]
[1738206209394,3.557717,3161.7,3161.0,3.16354]
[1738206209774,0.786,3161.4,3160.8,3.16375]
[1738206211075,0.786,3161.4,3160.9,3.16363]
[1738206211276,0.786,3161.4,3161.0,3.16355]
[1738206211799,0.7981,3161.9,3161.4,3.1631]
[1738206211974,0.7981,3161.9,3161.5,3.16302]
[1738206212178,0.7981,3161.9,3161.6,3.16295]
[1738206213808,0.7981,3161.9,3161.4,3.1631]
[1738206214403,0.7981,3161.9,3161.2,3.16332]
[1738206214607,0.7981,3161.9,3161.0,3.16351]
[1738206214608,3.16277,3161.8,3161.0,3.16351]
[1738206214808,0.8039,3161.7,3161.0,3.16351]
[1738206214976,3.96684,3161.7,3161.0,3.16351]
[1738206215193,3.16296,3161.6,3161.0,3.16351]
[1738206215527,3.16296,3161.6,3160.8,3.16372]
[1738206215730,0.7888,3161.4,3160.9,3.16359]
[1738206216827,0.7888,3161.4,3160.7,3.16383]
[1738206217129,0.7888,3161.4,3160.8,3.16374]
[1738206217629,3.95196,3161.4,3160.8,3.16374]
[1738206217838,3.1633,3161.3,3160.6,3.16392]
[1738206218560,3.96957,3161.2,3160.4,3.16408]
[1738206218718,3.1633,3161.3,3160.2,3.16428]
[1738206218719,3.16355,3161.0,3160.2,3.16428]
[1738206219039,3.96645,3161.1,3160.3,3.16418]
[1738206219344,0.803,3160.9,3160.3,3.16418]
[1738206219901,0.803,3160.9,3160.5,3.16403]
[1738206220300,0.803,3160.9,3160.3,3.16418]
[1738206220501,0.803,3160.9,3160.4,3.16409]
[1738206220908,1.199645,3160.9,3160.3,3.16418]
[1738206221338,4.363365,3160.9,3160.2,3.16434]
[1738206221549,3.16393,3160.7,3160.0,3.16446]
[1738206221757,3.95178,3160.6,3160.0,3.16446]
[1738206222065,0.7878,3160.6,3160.0,3.16446]
[1738206222509,0.7581,3160.5,3159.8,3.16474]
[1738206222757,3.92217,3160.5,3159.8,3.16474]
[1738206223295,3.92217,3160.5,3159.9,3.16464]
[1738206223645,3.92217,3160.5,3159.8,3.16474]
[1738206223646,0.7581,3160.5,3160.0,3.16454]
[1738206224299,4.3538903,3160.5,3159.8,3.16474]
[1738206225204,3.16417,3160.4,3159.8,3.16474]
[1738206225912,3.16417,3160.4,3159.1,0.8302]
[1738206225913,3.16427,3160.3,3159.4,3.16512]
[1738206226122,3.16463,3160.0,3159.2,3.16535]
[1738206226407,3.96943,3160.1,3159.2,3.16535]
[1738206226547,3.16458,3160.0,3159.4,3.16513]
[1738206226750,3.16458,3160.0,3159.2,6.33064]
[1738206226963,0.8049,3159.7,3159.1,3.16543]
[1738206227388,0.8049,3159.7,3159.3,3.16525]
[1738206227607,0.8049,3159.7,3159.1,3.16543]
[1738206228315,0.8049,3159.7,3159.2,3.16531]
[1738206229152,3.96976,3159.7,3159.0,3.16553]
[1738206229355,4.683203,3159.7,3159.0,3.16553]
[1738206229709,4.683203,3159.7,3159.1,3.16544]
[1738206229908,1.518343,3159.7,3158.7,3.99604]
[1738206230056,3.16511,3159.5,3158.7,3.16584]
[1738206230261,3.16511,3159.5,3158.8,3.16574]
[1738206230461,3.95633,3159.4,3158.7,3.16584]
[1738206230867,0.7911,3159.4,3158.8,3.16574]
[1738206232822,0.7911,3159.4,3158.6,3.16595]
[1738206232823,3.16534,3159.3,3158.6,3.16595]
[1738206232987,3.877495,3159.3,3158.7,3.16585]
[1738206233689,3.877495,3159.3,3158.6,3.16592]
[1738206233874,3.877495,3159.3,3158.4,3.16615]
[1738206234089,3.877495,3159.3,3158.7,3.16585]
[1738206234737,3.16544,3159.2,3158.5,3.16599]
[1738206234885,0.8165,3159.1,3158.5,3.16599]
[1738206235081,0.8165,3159.1,3158.4,3.16615]
[1738206235322,0.8165,3159.1,3158.6,3.16594]
[1738206236134,0.8165,3159.1,3158.7,3.16585]
[1738206236433,0.8165,3159.1,3158.8,3.16569]
[1738206236735,0.8165,3159.1,3158.8,3.16574]
[1738206237242,0.8165,3159.1,3158.5,3.16603]
[1738206237406,0.8165,3159.1,3158.6,3.16585]
[1738206237604,0.8165,3159.1,3158.5,3.16603]